bitfinex/quotes_BTCUSD_20230115
["timestamp","ask_amount","ask_price","bid_price","bid_amount"]
[1673795731678,0.557,20877.0,20876.0,0.94315613]
[1673795731916,1.135996,20877.0,20876.0,0.87258797]
[1673795732180,1.135996,20877.0,20876.0,0.80202635]
[1673795732181,1.035996,20877.0,20876.0,0.80202635]
[1673795733212,1.035996,20877.0,20876.0,0.74792584]
[1673795733213,1.8727477,20877.0,20876.0,0.74792584]
[1673795733470,1.514992,20877.0,20876.0,0.68945522]
[1673795733727,1.5620758,20877.0,20876.0,0.68945522]
[1673795735012,1.514992,20877.0,20876.0,0.68945522]
[1673795737304,2.96018766,20877.0,20872.0,0.99346996]
[1673795737553,1.37508902,20876.0,20872.0,0.99346996]
[1673795737817,0.1285,20873.0,20872.0,0.99346996]
[1673795738095,1.965761,20873.0,20872.0,0.99346996]
[1673795738555,1.8088835,20873.0,20872.0,0.99346996]
[1673795739094,0.958174,20873.0,20872.0,0.99346996]
[1673795740420,0.958174,20873.0,20872.0,1.34570803]
[1673795740627,1.258174,20873.0,20872.0,1.34570803]
[1673795741137,0.479087,20873.0,20872.0,1.34570803]
[1673795741387,0.479067,20874.0,20873.0,0.27565133]
[1673795741695,0.958131,20874.0,20873.0,0.27565133]
[1673795742149,1.27970528,20874.0,20873.0,0.27565133]
[1673795742406,1.258131,20874.0,20873.0,0.27565133]
[1673795742898,1.61268946,20874.0,20873.0,0.27565133]
[1673795743684,0.479067,20874.0,20873.0,0.27565133]
[1673795743935,0.479046,20875.0,20873.0,0.56439961]
[1673795744464,0.479046,20875.0,20873.0,0.28874828]
[1673795744697,0.79929453,20875.0,20873.0,0.28874828]
[1673795744958,1.13460829,20875.0,20872.0,0.00315308]
[1673795745215,0.6452883,20874.0,20872.0,0.00315308]
[1673795745502,0.958174,20873.0,20872.0,0.00315308]
[1673795745734,1.258174,20873.0,20872.0,0.00315308]
[1673795748035,0.779087,20873.0,20872.0,0.00315308]
[1673795748292,0.3452883,20874.0,20872.0,0.00315308]
[1673795748557,0.8243713,20874.0,20872.0,0.00315308]
[1673795749368,1.116736,20874.0,20873.0,0.01593305]
[1673795749605,1.34060613,20874.0,20873.0,0.01593305]
[1673795750086,2.07480782,20874.0,20873.0,0.01593305]
[1673795750627,1.386669,20874.0,20873.0,0.01593305]
[1673795750879,1.086669,20874.0,20873.0,0.01593305]
[1673795751128,0.958169,20874.0,20873.0,0.01593305]
[1673795751398,1.27201589,20874.0,20873.0,0.02443305]
[1673795751652,1.27201589,20874.0,20873.0,0.01593305]
[1673795751653,1.17526249,20874.0,20873.0,0.01593305]
[1673795751906,1.058169,20874.0,20873.0,0.01593305]
[1673795752190,1.314369,20874.0,20873.0,0.01593305]
[1673795752690,1.214369,20874.0,20873.0,0.01593305]
[1673795752937,1.386669,20874.0,20873.0,0.01593305]
[1673795754443,1.68022237,20874.0,20873.0,0.01593305]
[1673795754687,1.78022237,20874.0,20873.0,0.01593305]
[1673795754953,2.52744079,20874.0,20873.0,0.01593305]
[1673795755188,3.3080557,20874.0,20873.0,0.01593305]
[1673795755444,2.74369514,20874.0,20873.0,0.01593305]
[1673795755729,3.02032692,20874.0,20873.0,0.01593305]
[1673795755971,2.74360474,20874.0,20873.0,0.01593305]
[1673795756736,2.88356714,20874.0,20873.0,0.01593305]
[1673795757034,2.78356714,20874.0,20873.0,0.01593305]
[1673795757293,1.28762154,20874.0,20873.0,0.01593305]
[1673795758347,1.28299438,20874.0,20873.0,0.01593305]
[1673795758602,1.258169,20874.0,20873.0,0.01593305]
[1673795758863,1.63888907,20874.0,20873.0,0.01593305]
[1673795759401,1.58887034,20874.0,20873.0,0.01593305]
[1673795759697,2.53768165,20874.0,20873.0,0.01593305]
[1673795759960,2.68074277,20874.0,20873.0,0.01593305]
[1673795760228,2.60610549,20874.0,20873.0,0.01383932]
[1673795760499,2.67444143,20874.0,20873.0,0.01383932]
[1673795761031,2.49330821,20874.0,20873.0,0.01383932]
[1673795761295,2.62999294,20874.0,20873.0,0.01383932]
[1673795761813,2.20705635,20874.0,20873.0,0.01383932]
[1673795762059,2.62999294,20874.0,20873.0,0.01383932]
[1673795762835,2.34374009,20874.0,20873.0,0.01383932]
[1673795763085,0.1,20873.0,20872.0,0.00242248]
[1673795763339,2.09157569,20873.0,20872.0,0.00242248]
[1673795763613,2.09157569,20873.0,20866.0,0.0366203]
[1673795763614,0.1,20872.0,20866.0,0.0366203]
[1673795763880,0.1285,20869.0,20867.0,0.0085]
[1673795764125,0.958404,20868.0,20867.0,0.0085]
[1673795764362,1.56974667,20868.0,20867.0,0.0085]
[1673795772806,1.258404,20868.0,20867.0,0.0085]
[1673795773082,1.40162361,20868.0,20867.0,0.0085]
[1673795773357,1.63983193,20868.0,20867.0,0.0085]
[1673795773615,1.63983193,20868.0,20867.0,0.0035]
[1673795773882,1.40162361,20868.0,20866.0,0.0366203]
[1673795774148,0.4,20867.0,20866.0,0.0366203]
[1673795774392,1.58800471,20867.0,20866.0,0.0366203]
[1673795775642,1.25845,20867.0,20866.0,0.0366203]
[1673795775904,1.92869515,20867.0,20866.0,0.0366203]
[1673795776163,2.89647312,20867.0,20866.0,0.0366203]
[1673795776453,2.53390403,20867.0,20866.0,0.0366203]
[1673795776696,2.82047789,20867.0,20866.0,0.0366203]
[1673795776914,2.53390403,20867.0,20866.0,0.0366203]
[1673795777170,2.5338563,20867.0,20866.0,0.0366203]
[1673795777427,2.07393282,20867.0,20866.0,0.22734625]
[1673795777693,1.35904282,20867.0,20866.0,0.22734625]
[1673795777934,1.35904282,20867.0,20866.0,0.0451203]
[1673795778450,1.35904282,20867.0,20866.0,0.0401203]
[1673795779460,1.65904282,20867.0,20866.0,0.0401203]
[1673795781264,1.25845,20867.0,20866.0,0.0401203]
[1673795781568,1.55599107,20867.0,20866.0,0.0401203]
[1673795781779,1.82687365,20867.0,20866.0,0.0401203]
[1673795782030,1.82687365,20867.0,20866.0,0.0316203]
[1673795782031,1.89848342,20867.0,20866.0,0.0316203]
[1673795782280,2.07693284,20867.0,20866.0,0.0316203]
[1673795782802,2.58351453,20867.0,20866.0,0.0316203]
[1673795783057,2.68263453,20867.0,20866.0,0.0316203]
[1673795784070,2.32463323,20867.0,20866.0,0.02817112]
[1673795784339,2.02709216,20867.0,20866.0,0.02817112]
[1673795784577,2.38499424,20867.0,20866.0,0.02817112]
[1673795784827,2.02709216,20867.0,20866.0,0.02817112]
[1673795785079,2.38499327,20867.0,20866.0,0.02817112]
[1673795785591,2.38499327,20867.0,20866.0,0.03817112]
[1673795786089,2.44478972,20867.0,20866.0,0.03817112]
[1673795786344,2.44478972,20867.0,20866.0,0.01731775]
[1673795786632,2.866433,20867.0,20866.0,0.01731775]
[1673795786864,3.29086586,20867.0,20866.0,0.01731775]
[1673795787109,0.10384492,20865.0,20864.0,0.00275061]
[1673795787365,0.65264141,20865.0,20864.0,0.19347656]
[1673795787619,0.77255575,20869.0,20864.0,1.61557933]
[1673795787620,0.65598463,20869.0,20864.0,1.61557933]
[1673795787922,0.26655933,20874.0,20866.0,0.6]
[1673795788166,0.51068798,20878.0,20869.0,0.6]
[1673795788437,0.51068798,20878.0,20871.0,2.079851]
[1673795788438,0.15296582,20878.0,20871.0,2.079851]
[1673795788688,0.15296582,20878.0,20874.0,0.128]
[1673795788942,0.15296582,20878.0,20875.0,1.46934195]
[1673795789215,0.15296582,20878.0,20876.0,0.40389495]
[1673795789485,0.4561569,20878.0,20877.0,0.329009]
[1673795789731,0.15296582,20878.0,20877.0,1.13971128]
[1673795789981,0.01961175,20882.0,20877.0,1.89833095]
[1673795790236,0.01961175,20882.0,20878.0,0.50387295]
[1673795790483,0.36486654,20882.0,20879.0,0.936421]
[1673795790764,0.36486654,20882.0,20878.0,0.1]
[1673795790765,0.35923523,20878.0,20875.0,0.39682502]
[1673795790995,0.33006213,20878.0,20875.0,0.29682502]
[1673795791252,0.406192,20878.0,20876.0,0.36448747]
[1673795791508,0.33006213,20878.0,20876.0,0.36448747]
[1673795792040,0.09409154,20878.0,20877.0,0.10387]
[1673795792267,0.25806945,20879.0,20877.0,0.424578]
[1673795792520,0.25735933,20878.0,20877.0,0.0085]
[1673795792772,0.55735933,20878.0,20877.0,0.0085]
[1673795793571,0.55735933,20878.0,20876.0,0.35315524]
[1673795794340,0.3,20877.0,20876.0,0.35315524]
[1673795794601,0.3,20877.0,20876.0,0.0085]
[1673795794848,0.3,20877.0,20875.0,0.0085]
[1673795795096,0.3,20877.0,20874.0,0.40709168]
[1673795795913,0.3,20877.0,20875.0,0.31469098]
[1673795796119,0.49850875,20882.0,20876.0,0.87769941]
[1673795796375,0.2730941,20880.0,20877.0,0.19072595]
[1673795796658,0.2730941,20880.0,20877.0,0.19922595]
[1673795797195,0.31972155,20882.0,20877.0,0.32672595]
[1673795797457,0.28772974,20881.0,20878.0,0.51143395]
[1673795797703,0.28772974,20881.0,20879.0,0.221416]
[1673795797965,0.28772974,20881.0,20880.0,0.0085]
[1673795798532,0.58772974,20881.0,20879.0,0.0085]
[1673795798790,0.28772974,20881.0,20879.0,0.0085]
[1673795799043,0.3,20880.0,20879.0,0.0085]
[1673795799545,0.28772974,20881.0,20879.0,0.0085]
[1673795799823,0.28772974,20881.0,20880.0,0.320708]
[1673795800052,0.01961175,20882.0,20880.0,0.69097458]
[1673795800316,0.01961175,20882.0,20881.0,0.221363]
[1673795801342,0.01961175,20882.0,20881.0,0.700267]
[1673795801590,0.01961175,20882.0,20881.0,0.928767]
[1673795802595,0.01961175,20882.0,20881.0,1.35346788]
[1673795802851,0.01961175,20882.0,20881.0,1.48136788]
[1673795803102,0.09574162,20882.0,20881.0,1.13623607]
[1673795803408,0.01961175,20882.0,20881.0,0.212863]
[1673795803655,0.01961175,20882.0,20880.0,0.77691334]
[1673795803880,0.01961175,20882.0,20881.0,0.84611764]
[1673795804145,0.01961175,20882.0,20881.0,1.507016]
[1673795804396,0.01961175,20882.0,20881.0,1.635516]
[1673795804697,0.01961175,20883.0,20882.0,0.13480111]
[1673795804907,0.01961175,20883.0,20882.0,0.47613611]
[1673795805155,0.01961175,20883.0,20882.0,1.83567406]
[1673795805649,0.01961175,20883.0,20882.0,1.73567406]
[1673795805914,0.01961175,20883.0,20882.0,0.24763611]
[1673795805915,0.28151436,20883.0,20882.0,0.24763611]
[1673795806178,0.28151436,20883.0,20882.0,0.03480111]
[1673795806428,0.58151436,20883.0,20882.0,0.03480111]
[1673795806943,0.01961175,20883.0,20882.0,0.03480111]
[1673795807244,0.01961175,20883.0,20882.0,0.89327411]
[1673795807485,0.01961175,20883.0,20882.0,1.21398211]
[1673795808503,0.01961175,20883.0,20882.0,1.21411837]
[1673795808748,0.01961175,20883.0,20882.0,1.34141837]
[1673795809241,0.01961175,20883.0,20882.0,1.82029937]
[1673795809506,0.4206885,20883.0,20882.0,0.03480111]
[1673795809774,0.3253785,20883.0,20882.0,0.03480111]
[1673795810028,0.6253785,20883.0,20882.0,0.03480111]
[1673795810278,0.6203785,20883.0,20882.0,0.03480111]
[1673795810815,0.01461175,20883.0,20882.0,0.22552706]
[1673795811144,0.01461175,20883.0,20882.0,0.89179451]
[1673795811346,0.01461175,20883.0,20882.0,1.21250251]
[1673795811811,0.01461175,20883.0,20882.0,1.69138351]
[1673795812313,0.01461175,20883.0,20882.0,1.21250251]
[1673795812568,0.72053995,20883.0,20882.0,0.03480111]
[1673795812816,1.19939795,20883.0,20882.0,0.03480111]
[1673795813562,0.72053995,20883.0,20882.0,0.03480111]
[1673795813822,0.01461175,20883.0,20882.0,0.03480111]
[1673795814090,0.01461175,20883.0,20882.0,0.88359258]
[1673795814616,0.01461175,20883.0,20882.0,1.20430058]
[1673795815669,0.01461175,20883.0,20882.0,1.68318158]
[1673795816689,0.01461175,20883.0,20882.0,1.32177111]
[1673795816940,0.01461175,20883.0,20882.0,1.72499634]
[1673795817184,0.01461175,20883.0,20882.0,1.62499634]
[1673795817966,1e-08,20883.0,20882.0,1.62499634]
[1673795819529,1e-08,20883.0,20882.0,1.32177111]
[1673795820317,1e-08,20883.0,20882.0,1.69501509]
[1673795820572,1e-08,20883.0,20882.0,1.32177111]
[1673795822403,1e-08,20883.0,20882.0,1.7989728]
[1673795822690,1e-08,20883.0,20882.0,1.9274728]
[1673795822910,0.62630574,20886.0,20883.0,0.1]
[1673795823167,0.62630574,20886.0,20884.0,1.298964]
[1673795823449,0.62630574,20886.0,20885.0,0.320657]
[1673795823697,0.32270674,20885.0,20882.0,0.03480111]
[1673795823999,0.32270674,20885.0,20883.0,0.32998619]
[1673795824000,0.94716275,20885.0,20883.0,0.32998619]
[1673795824210,0.92630574,20886.0,20883.0,0.32998619]
[1673795824479,0.62630574,20886.0,20883.0,0.80883719]
[1673795824743,0.62630574,20886.0,20884.0,0.320708]
[1673795825005,0.62630574,20886.0,20885.0,0.212748]
[1673795825268,0.62630574,20886.0,20885.0,0.329208]
[1673795825532,0.62630574,20886.0,20885.0,0.80802]
[1673795825784,0.62630574,20886.0,20885.0,1.286832]
[1673795826054,0.62630574,20886.0,20885.0,1.60559441]
[1673795826314,0.62130574,20886.0,20885.0,1.60559441]
[1673795828441,0.62130574,20886.0,20885.0,1.286832]
[1673795828693,0.62130574,20886.0,20885.0,2.24454553]
[1673795828942,0.62130574,20886.0,20885.0,2.24452969]
[1673795829203,0.0217721,20887.0,20886.0,0.421422]
[1673795829462,0.0217721,20887.0,20886.0,0.91039001]
[1673795829736,0.0217721,20887.0,20886.0,0.329922]
[1673795829993,0.33659594,20887.0,20886.0,0.329922]
[1673795830246,0.63659594,20887.0,20886.0,0.329922]
[1673795830786,0.33659594,20887.0,20886.0,0.329922]
[1673795831045,0.0167721,20887.0,20886.0,0.329922]
[1673795832085,0.3067721,20887.0,20886.0,0.329922]
[1673795832329,0.0067721,20887.0,20886.0,0.70539634]
[1673795833363,0.0067721,20887.0,20886.0,1.02610434]
[1673795834438,0.0067721,20887.0,20886.0,0.70539634]
[1673795834685,0.0017721,20887.0,20886.0,0.70539634]
[1673795835422,0.0017721,20887.0,20886.0,1.02610434]
[1673795836738,0.0017721,20887.0,20886.0,1.02616434]
[1673795837069,0.0017721,20887.0,20886.0,0.329982]
[1673795837070,0.17321197,20887.0,20886.0,0.329982]
[1673795837288,1.25874397,20887.0,20886.0,0.321482]
[1673795837542,1.62510819,20887.0,20886.0,0.321482]
[1673795838347,1.98148643,20887.0,20886.0,0.33921784]
[1673795838586,2.10998643,20887.0,20886.0,0.33921784]
[1673795838826,2.27919059,20887.0,20886.0,0.33921784]
[1673795839343,2.43319333,20887.0,20886.0,0.33921784]
[1673795839614,2.14808617,20887.0,20886.0,0.33921784]
[1673795839854,2.45334053,20887.0,20886.0,0.33921784]
[1673795840107,1.82489983,20887.0,20886.0,0.33921784]
[1673795840355,1.30981773,20887.0,20886.0,0.34771784]
[1673795840622,0.610965,20888.0,20886.0,0.34771784]
[1673795840873,0.005,20888.0,20887.0,0.0085]
[1673795841644,0.005,20888.0,20887.0,0.40057799]
[1673795841900,0.005,20888.0,20887.0,0.38574799]
[1673795842210,0.005,20888.0,20887.0,0.19072595]
[1673795842477,0.005,20888.0,20887.0,0.51143395]
[1673795842694,0.005,20888.0,20887.0,1.61505245]
[1673795842955,0.005,20888.0,20887.0,1.27824]
[1673795843207,0.005,20888.0,20887.0,2.66826306]
[1673795843987,0.005,20888.0,20887.0,2.67676306]
[1673795844505,0.005,20888.0,20887.0,2.244401]
[1673795844760,0.005,20888.0,20887.0,1.59842304]
[1673795845020,0.005,20888.0,20887.0,1.2868]
[1673795845309,0.23557806,20896.0,20887.0,4.42884561]
[1673795845570,0.25,20899.0,20895.0,0.14085656]
[1673795845848,0.019406,20901.0,20896.0,2.80430464]
[1673795846118,0.33741494,20906.0,20898.0,0.71645169]
[1673795846430,0.0004,20907.0,20900.0,0.956918]
[1673795846697,0.10991136,20906.0,20901.0,0.69820969]
[1673795846969,0.10991136,20906.0,20901.0,0.35479439]
[1673795846970,0.38584002,20906.0,20901.0,0.35479439]
[1673795847231,0.21483354,20908.0,20901.0,0.35479439]
[1673795847512,0.1285,20905.0,20901.0,0.29791794]
[1673795847770,0.07612987,20904.0,20899.0,0.95692683]
[1673795848042,0.07612987,20903.0,20895.0,0.14085656]
[1673795848297,0.07612987,20903.0,20896.0,0.38169993]
[1673795848298,0.1285,20900.0,20896.0,0.38169993]
[1673795848560,0.1285,20898.0,20895.0,0.45705179]
[1673795848837,0.20402987,20897.0,20895.0,0.14085656]
[1673795849108,0.3,20896.0,20891.0,0.39674507]
[1673795849375,0.607022,20898.0,20896.0,0.66792764]
[1673795849630,0.4734,20903.0,20897.0,0.19072595]
[1673795849973,0.4734,20903.0,20901.0,6e-05]
[1673795850165,0.4734,20903.0,20901.0,0.19078595]
[1673795850400,0.478422,20903.0,20901.0,6e-05]
[1673795850660,0.3664119,20902.0,20901.0,6e-05]
[1673795850919,0.1,20901.0,20896.0,0.22387012]
[1673795851209,1.57863659,20902.0,20897.0,0.19072595]
[1673795851210,0.34354574,20898.0,20897.0,0.19072595]
[1673795851462,0.32202486,20899.0,20896.0,0.22387012]
[1673795851728,0.606466,20901.0,20896.0,0.22387012]
[1673795851981,0.47851,20899.0,20896.0,0.22387012]
[1673795852233,0.32032,20900.0,20896.0,0.22387012]
[1673795852501,0.32032,20900.0,20896.0,0.41459607]
[1673795852763,0.32032,20900.0,20896.0,0.22387012]
[1673795853013,0.3,20899.0,20896.0,0.22387012]
[1673795853279,0.1285,20898.0,20897.0,0.01773248]
[1673795853544,0.607014,20898.0,20897.0,0.01773248]
[1673795853835,0.702014,20898.0,20897.0,0.01773248]
[1673795854082,0.707014,20898.0,20897.0,0.01773248]
[1673795854323,0.1,20897.0,20890.0,0.1843733]
[1673795854580,0.02938,20894.0,20890.0,0.1843733]
[1673795854840,0.957266,20893.0,20890.0,0.1843733]
[1673795855103,0.2562,20891.0,20890.0,0.1843733]
[1673795855337,1.51355,20891.0,20890.0,0.1843733]
[1673795855866,1.8070183,20891.0,20888.0,0.00837488]
[1673795856123,0.8987,20889.0,20888.0,0.00837488]
[1673795856431,1.67700169,20889.0,20886.0,0.321422]
[1673795856655,0.60770017,20888.0,20882.0,0.03480111]
[1673795856914,0.1285,20886.0,20883.0,0.30697066]
[1673795857171,0.1285,20884.0,20882.0,0.03480111]
[1673795857442,0.1277,20883.0,20882.0,0.03480111]
[1673795857749,0.4277,20883.0,20882.0,0.03480111]
[1673795858793,0.1277,20883.0,20882.0,0.03480111]
[1673795859342,0.1277,20883.0,20882.0,0.05299213]
[1673795859896,0.1,20882.0,20877.0,0.00296065]
[1673795860155,0.1285,20878.0,20877.0,0.00296065]
[1673795861972,0.1,20882.0,20880.0,0.30131056]
[1673795861973,0.1285,20882.0,20880.0,0.30131056]
[1673795862215,0.1285,20882.0,20881.0,0.19072595]
[1673795862466,0.1279,20884.0,20881.0,0.50984369]
[1673795862731,0.78503447,20885.0,20882.0,0.19072595]
[1673795863035,0.3474874,20883.0,20882.0,0.19072595]
[1673795863248,0.3474874,20883.0,20877.0,0.00296065]
[1673795863499,0.478813,20885.0,20877.0,0.00296065]
[1673795863500,0.39619613,20882.0,20879.0,0.34733545]
[1673795864020,0.1277,20880.0,20877.0,0.00296065]
[1673795864547,0.1,20878.0,20877.0,0.00296065]
[1673795864805,0.3,20878.0,20877.0,0.00296065]
[1673795865632,0.63036022,20878.0,20877.0,0.00296065]
[1673795866105,0.33036022,20878.0,20877.0,0.00296065]
[1673795866892,0.63036022,20878.0,20877.0,0.00296065]
[1673795867143,0.62176912,20878.0,20877.0,0.00296065]
[1673795868169,0.65315588,20878.0,20877.0,0.00296065]
[1673795868436,1.11502625,20878.0,20877.0,0.00296065]
[1673795868656,0.778973,20878.0,20877.0,0.00296065]
[1673795868953,1.1267611,20878.0,20877.0,0.00296065]
[1673795869547,0.778973,20878.0,20877.0,0.00296065]
[1673795869763,1.16672599,20878.0,20877.0,0.00296065]
[1673795870263,1.64569899,20878.0,20877.0,0.00296065]
[1673795870813,0.478939,20880.0,20877.0,0.1936866]
[1673795871056,0.28656209,20879.0,20877.0,0.39274231]
[1673795871307,0.28656209,20879.0,20877.0,0.58346826]
[1673795871572,0.28656209,20879.0,20877.0,0.00296065]
[1673795871836,0.28485621,20878.0,20877.0,0.00296065]
[1673795872093,1.24280221,20878.0,20877.0,0.00296065]
[1673795872342,1.34280221,20878.0,20877.0,0.00296065]
[1673795872599,1.614146,20878.0,20877.0,0.00296065]
[1673795872869,1.514146,20878.0,20877.0,0.00296065]
[1673795873418,1.486446,20878.0,20877.0,0.00296065]
[1673795873675,1.386446,20878.0,20877.0,0.00296065]
[1673795873903,1.77310865,20878.0,20877.0,0.00296065]
[1673795874164,1.386446,20878.0,20877.0,0.00296065]
[1673795876728,1.486446,20878.0,20877.0,0.00296065]
[1673795876980,1.386446,20878.0,20877.0,0.00296065]
[1673795877545,1.614946,20878.0,20877.0,0.00296065]
[1673795877807,1.24819821,20878.0,20877.0,0.1936866]
[1673795878064,1.24819821,20878.0,20877.0,0.00296065]
[1673795878866,1.60786251,20878.0,20877.0,0.00296065]
[1673795879123,1.86486251,20878.0,20877.0,0.00296065]
[1673795879397,1.25916082,20878.0,20877.0,0.00296065]
[1673795879653,1.386446,20878.0,20877.0,0.00296065]
[1673795880982,1.86364769,20878.0,20877.0,0.00296065]
[1673795881284,1.614355,20878.0,20877.0,0.00296065]
[1673795881575,1.314355,20878.0,20877.0,0.00296065]
[1673795882102,0.957946,20878.0,20877.0,0.00296065]
[1673795882365,1.2302736,20878.0,20877.0,0.00296065]
[1673795882677,1.70747529,20878.0,20877.0,0.00296065]
[1673795882940,1.96397529,20878.0,20877.0,0.00296065]
[1673795883203,2.60757529,20878.0,20877.0,6.065e-05]
[1673795883470,6e-05,20877.0,20873.0,0.00317468]
[1673795883724,0.28638,20874.0,20873.0,0.00317468]
[1673795883976,1.723572,20874.0,20873.0,0.00317468]
[1673795884249,2.123572,20874.0,20873.0,0.00317468]
[1673795884498,2.023572,20874.0,20873.0,0.00317468]
[1673795885018,1.994192,20874.0,20873.0,0.00317468]
[1673795886334,2.75393553,20874.0,20873.0,0.00317468]
[1673795886601,2.78331553,20874.0,20873.0,0.00317468]
[1673795887903,0.1,20873.0,20864.0,0.31537528]
[1673795888169,0.1285,20869.0,20864.0,0.31537528]
[1673795888436,0.479214,20868.0,20863.0,0.48246708]
[1673795888715,0.779173,20870.0,20863.0,0.00315308]
[1673795888716,0.3,20870.0,20863.0,0.00315308]
[1673795888969,1.35148559,20869.0,20864.0,0.62485566]
[1673795889464,0.28319866,20868.0,20864.0,0.78343966]
[1673795889513,0.36090177,20867.0,20864.0,0.78343966]
[1673795889736,0.479206,20868.0,20864.0,0.30414766]
[1673795890006,0.479206,20868.0,20865.0,0.0085]
[1673795890007,0.08421848,20867.0,20865.0,0.0085]
[1673795890266,0.86345348,20867.0,20863.0,0.40737212]
[1673795890805,0.86345348,20867.0,20864.0,0.30601714]
[1673795891061,0.86345348,20867.0,20865.0,0.0085]
[1673795891315,0.0834158,20866.0,20865.0,0.0085]
[1673795891576,0.0834158,20866.0,20864.0,0.01237721]
[1673795891828,1.14060608,20866.0,20864.0,0.00387721]
[1673795892085,0.3,20865.0,20864.0,0.00387721]
[1673795892341,1.358542,20865.0,20864.0,0.00387721]
[1673795893450,1.258542,20865.0,20864.0,0.00387721]
[1673795894234,1.33016861,20865.0,20864.0,0.00387721]
[1673795895026,1.258542,20865.0,20864.0,0.00387721]
[1673795895579,0.1,20864.0,20863.0,0.00203029]
[1673795896145,1.02854535,20864.0,20863.0,0.00203029]
[1673795896606,1.258588,20864.0,20863.0,0.00203029]
[1673795896863,1.33006873,20864.0,20863.0,0.00203029]
[1673795897121,1.03006873,20864.0,20863.0,0.00203029]
[1673795897641,0.07148073,20864.0,20863.0,0.00203029]
[1673795898477,0.37148073,20864.0,20863.0,0.00203029]
[1673795898726,0.07148073,20864.0,20863.0,0.00203029]
[1673795899494,0.37148073,20864.0,20863.0,0.00203029]
[1673795900266,1.33006873,20864.0,20863.0,0.00203029]
[1673795900524,1.57006873,20864.0,20863.0,0.00203029]
[1673795900784,1.57006873,20864.0,20863.0,0.00143029]
[1673795901572,1.498588,20864.0,20863.0,0.00143029]
[1673795902387,1.598588,20864.0,20863.0,0.00143029]
[1673795902653,2.10516969,20864.0,20863.0,0.00143029]
[1673795902906,2.33423566,20864.0,20863.0,0.00143029]
[1673795903698,2.74471025,20864.0,20863.0,0.00143029]
[1673795903971,2.74472758,20864.0,20863.0,0.00143029]
[1673795905045,2.33423566,20864.0,20863.0,0.00143029]
[1673795905868,1.198588,20864.0,20863.0,0.00143029]
[1673795906125,1.298588,20864.0,20863.0,0.00143029]
[1673795906420,1.198588,20864.0,20863.0,0.00143029]
[1673795906961,1.269318,20864.0,20863.0,0.19215624]
[1673795907238,1.269318,20864.0,20863.0,0.00143029]
[1673795907493,0.790024,20864.0,20863.0,0.00143029]
[1673795908276,1.269318,20864.0,20863.0,0.00143029]
[1673795908527,1.4441773,20864.0,20863.0,0.00143029]
[1673795908791,1.569318,20864.0,20863.0,0.00143029]
[1673795909822,1.498588,20864.0,20863.0,0.00143029]
[1673795910085,2.07578969,20864.0,20863.0,0.00143029]
[1673795910636,2.51577098,20864.0,20863.0,0.00143029]
[1673795911170,2.56410077,20864.0,20863.0,0.00143029]
[1673795911447,2.94429775,20864.0,20863.0,0.00143029]
[1673795911818,2.53369646,20864.0,20863.0,0.00143029]
[1673795912068,2.94470415,20864.0,20863.0,0.00143029]
[1673795912322,0.1,20863.0,20858.0,0.00373835]
[1673795912560,0.1367,20861.0,20858.0,0.00373835]
[1673795912822,0.1,20859.0,20858.0,0.00373835]
[1673795913070,1.058818,20859.0,20858.0,0.00373835]
[1673795913330,1.258818,20859.0,20858.0,0.00373835]
[1673795915292,1.395618,20859.0,20858.0,0.00373835]
[1673795915782,1.90219969,20859.0,20858.0,0.00373835]
[1673795916018,1.258818,20859.0,20858.0,0.00373835]
[1673795916264,1.34413236,20859.0,20858.0,0.00373835]
[1673795917316,1.258818,20859.0,20858.0,0.00373835]
[1673795918803,1.358818,20859.0,20858.0,0.00373835]
[1673795919047,2.24699802,20859.0,20858.0,0.00373835]
[1673795919284,2.61570502,20859.0,20858.0,0.00373835]
[1673795919533,2.61569487,20859.0,20858.0,0.00373835]
[1673795919781,2.64507487,20859.0,20858.0,0.00373835]
[1673795920279,2.64507487,20859.0,20855.0,0.00331375]
[1673795920280,0.1,20858.0,20855.0,0.00331375]
[1673795920567,0.1367,20856.0,20855.0,0.00331375]
[1673795920791,2.28410102,20856.0,20855.0,0.00331375]
[1673795921532,1.87285769,20856.0,20855.0,0.00331375]
[1673795923550,1.87285769,20856.0,20854.0,0.00396219]
[1673795923806,0.1,20855.0,20854.0,0.00396219]
[1673795924066,1.359002,20855.0,20854.0,0.00396219]
[1673795925052,1.65218797,20855.0,20849.0,0.00461063]
[1673795925305,0.67723994,20854.0,20849.0,0.00461063]
[1673795925550,3.10652498,20853.0,20849.0,0.00461063]
[1673795925806,3.10652498,20853.0,20849.0,0.57858204]
[1673795925807,1.81377126,20853.0,20849.0,0.57858204]
[1673795926045,0.479517,20855.0,20850.0,0.19072595]
[1673795926293,0.56541271,20855.0,20851.0,0.19072595]
[1673795926548,0.08589571,20855.0,20851.0,0.19072595]
[1673795927353,0.07973882,20853.0,20850.0,0.40036908]
[1673795928154,0.54704402,20855.0,20850.0,0.479609]
[1673795928416,0.0835428,20859.0,20852.0,0.1376]
[1673795928646,0.0835428,20859.0,20854.0,1.059044]
[1673795928896,0.0835428,20859.0,20855.0,0.41283995]
[1673795929141,0.0835428,20859.0,20856.0,0.19072595]
[1673795929396,0.0835428,20859.0,20857.0,0.0085]
[1673795929634,0.14264305,20864.0,20858.0,0.19072595]
[1673795929874,0.06550615,20862.0,20859.0,0.19922595]
[1673795930119,0.06550615,20862.0,20859.0,0.67863195]
[1673795930365,3.155254,20866.0,20859.0,0.67863195]
[1673795930366,0.06519473,20861.0,20859.0,0.487906]
[1673795930871,0.08531784,20864.0,20860.0,0.3646795]
[1673795931124,0.08531784,20864.0,20861.0,0.0085]
[1673795931390,0.08531784,20864.0,20861.0,0.19072595]
[1673795931649,0.38531784,20864.0,20859.0,0.487906]
[1673795931944,0.24965374,20863.0,20859.0,0.67863195]
[1673795932166,0.24965374,20863.0,20859.0,0.487906]
[1673795932392,0.3,20862.0,20859.0,0.487906]
[1673795932659,0.3,20862.0,20859.0,0.0085]
[1673795932906,0.29306646,20861.0,20859.0,0.0085]
[1673795933171,0.3,20860.0,20857.0,0.479454]
[1673795933398,0.22495682,20859.0,20858.0,0.0085]
[1673795933661,0.22495682,20859.0,20855.0,0.479487]
[1673795933662,0.52495682,20859.0,20857.0,0.39747374]
[1673795933899,0.52495682,20859.0,20857.0,0.38897374]
[1673795933900,0.53454562,20859.0,20857.0,0.38897374]
[1673795934385,1.01395462,20859.0,20857.0,0.38897374]
[1673795934632,0.3,20858.0,20857.0,0.38897374]
[1673795934885,0.71395462,20859.0,20857.0,0.38897374]
[1673795937144,0.71395462,20859.0,20857.0,0.19072595]
[1673795937145,0.479409,20859.0,20857.0,0.19072595]